bitfinex/quotes_ETHUSD_20240729
["timestamp","ask_amount","ask_price","bid_price","bid_amount"]
[1722280378594,3.01601,3315.7,3315.1,3.01647]
[1722280381010,1.6145466,3315.7,3314.5,0.2]
[1722280381209,2.4551,3315.7,3314.5,0.2]
[1722280381803,2.4684,3315.2,3314.7,3.01684]
[1722280383118,2.4684,3315.2,3314.5,3.21697]
[1722280383707,3.01651,3315.1,3314.5,3.21697]
[1722280384219,2.4684,3315.2,3314.5,3.21697]
[1722280384414,2.4684,3315.2,3314.7,3.01678]
[1722280384620,7.37,3315.9,3314.5,3.21697]
[1722280384621,2.4684,3315.6,3315.1,3.01643]
[1722280384817,2.4684,3315.6,3315.2,3.0164]
[1722280385056,2.4684,3315.6,3315.0,3.07685428]
[1722280385220,2.4684,3315.6,3315.1,3.01644]
[1722280385425,2.4684,3315.6,3315.1,3.07676344]
[1722280385631,2.4684,3315.6,3315.2,3.0164]
[1722280386148,2.4684,3315.6,3315.4,3.01621]
[1722280387046,2.4684,3315.6,3315.2,6.03273]
[1722280387249,2.4684,3315.6,3315.3,3.0163]
[1722280388225,2.4684,3315.6,3315.4,3.01615]
[1722280388440,2.4684,3315.6,3314.9,0.06032255]
[1722280388751,2.4684,3315.6,3315.4,3.01619]
[1722280391362,2.4684,3315.6,3315.2,3.01637]
[1722280392793,2.4616,3315.4,3314.6,0.63220608]
[1722280392993,5.47787,3315.4,3314.5,3.21703]
[1722280393208,2.4616,3315.3,3314.5,0.2]
[1722280393372,3.01655,3315.1,3314.5,0.2]
[1722280393574,5.47798,3315.3,3314.5,0.2]
[1722280393911,3.01641,3315.2,3314.6,3.01689]
[1722280394052,3.865849,3315.2,3314.6,3.01689]
[1722280394854,3.01651,3315.1,3314.5,3.21703]
[1722280395362,3.865849,3315.2,3314.5,3.21703]
[1722280395567,3.0165,3315.1,3314.5,3.21696]
[1722280398487,3.0165,3315.1,3314.6,3.01695]
[1722280398824,2.4616,3315.3,3314.7,3.01685]
[1722280398971,2.4616,3315.3,3314.9,3.01667]
[1722280399313,7.37,3315.4,3315.0,3.01653]
[1722280401022,7.37,3315.4,3315.2,3.01635]
[1722280401238,2.4897,3315.6,3315.2,3.01634]
[1722280402226,2.4897,3315.6,3315.0,3.01651]
[1722280403812,2.4897,3315.6,3315.1,3.01642]
[1722280403988,2.4897,3315.6,3315.3,3.01625]
[1722280404188,2.4897,3315.6,3315.4,3.01622]
[1722280404809,2.4897,3315.6,3314.7,3.64901608]
[1722280404810,2.4897,3315.6,3315.5,3.01613]
[1722280405142,2.2785,3316.1,3315.9,3.01575]
[1722280406733,2.2785,3316.1,3315.7,3.01588]
[1722280406896,2.2785,3316.1,3315.8,3.01584]
[1722280407834,2.2785,3316.1,3315.7,3.01593]
[1722280407985,2.2785,3316.1,3315.5,3.01609]
[1722280408190,0.22785,3316.0,3315.5,3.01609]
[1722280408385,3.01578,3315.9,3315.3,3.0163]
[1722280410858,0.22785,3316.0,3315.3,3.01623]
[1722280412614,3.01579,3315.9,3315.1,3.01646]
[1722280412941,0.552214,3315.9,3315.3,3.01631]
[1722280413452,3.567994,3315.9,3315.3,3.01631]
[1722280413742,3.567994,3315.9,3315.1,3.01646]
[1722280414045,2.3181,3315.8,3315.2,3.01635]
[1722280414228,5.6907594,3315.8,3315.2,3.01635]
[1722280415647,2.6748994,3315.8,3315.2,3.01635]
[1722280415848,2.6748994,3315.8,3315.3,3.01625]
[1722280416539,2.6748994,3315.8,3315.4,3.0162]
[1722280416740,2.3181,3315.8,3315.4,3.0162]
[1722280417088,2.3181,3315.8,3315.6,3.01598]
[1722280417347,2.301,3316.1,3315.7,3.01595]
[1722280418921,2.301,3316.1,3315.7,3.0159]
[1722280419520,2.301,3316.1,3315.9,3.01574]
[1722280419724,2.301,3316.1,3315.7,3.07621401]
[1722280419725,2.301,3316.1,3315.7,3.01587]
[1722280419942,2.5311,3316.1,3315.7,3.01587]
[1722280422267,2.5311,3316.1,3315.7,6.03174]
[1722280422879,2.5311,3316.1,3315.7,3.01587]
[1722280425882,2.5311,3316.1,3315.8,3.01586]
[1722280429481,2.5311,3316.1,3315.6,3.01598]
[1722280429980,0.25311,3316.0,3315.4,3.01616]
[1722280430773,3.26879,3316.0,3315.4,3.01616]
[1722280431110,0.25311,3316.0,3315.5,3.01607]
[1722280432584,0.25311,3316.0,3315.6,3.01603]
[1722280432787,2.301,3316.1,3315.6,0.06031312]
[1722280433699,2.301,3316.1,3315.7,3.01588]
[1722280435407,2.301,3316.1,3315.8,3.01585]
[1722280437925,2.301,3316.1,3315.9,3.01575]
[1722280439136,2.301,3316.1,3315.7,3.07618277]
[1722280439434,2.5311,3316.1,3315.7,3.01587]
[1722280440532,7.37,3316.4,3315.9,4.13077]
[1722280440831,7.37,3316.4,3315.2,3.01637]
[1722280440832,9.841,3316.4,3316.2,3.01543]
[1722280442231,7.37,3316.4,3316.3,3.0154]
[1722280443028,2.2969,3316.7,3316.5,3.01522]
[1722280443829,2.2969,3316.7,3316.3,3.0154]
[1722280443830,2.2969,3316.7,3316.4,3.01531]
[1722280448430,2.2969,3316.7,3316.3,3.01533]
[1722280448431,2.2969,3316.7,3316.5,3.01522]
[1722280451172,2.2969,3316.7,3316.6,3.01513]
[1722280451379,2.3414,3317.0,3316.7,3.01497]
[1722280451587,2.3414,3317.0,3316.5,3.01519]
[1722280451731,2.3414,3317.0,3316.7,3.01499]
[1722280452584,2.3414,3317.0,3316.5,3.01515]
[1722280452888,2.3414,3317.0,3316.6,3.01505]
[1722280456078,2.3414,3317.0,3316.7,3.01504]
[1722280456851,2.3414,3317.0,3316.8,3.01494]
[1722280457052,2.3414,3317.0,3316.7,3.01504]
[1722280458691,2.3414,3317.0,3316.5,6.03037]
[1722280458891,2.3414,3317.0,3316.6,3.01513]
[1722280459477,2.3414,3317.0,3316.3,3.01537]
[1722280459878,2.3414,3317.0,3316.5,3.01522]
[1722280460207,2.3414,3317.0,3316.5,6.03038]
[1722280460509,2.3414,3317.0,3316.6,3.01511]
[1722280461074,2.3414,3317.0,3316.6,3.01507]
[1722280461412,2.3414,3317.0,3316.7,3.01497]
[1722280461724,2.3414,3317.0,3316.6,4.13007]
[1722280461725,2.3414,3317.0,3316.8,3.01494]
[1722280462520,2.3414,3317.0,3316.6,3.01507]
[1722280465512,5.35617,3317.0,3316.4,4.13028]
[1722280465720,2.3414,3317.0,3316.4,4.13023]
[1722280466510,2.3414,3317.0,3316.5,3.01517]
[1722280467473,2.3414,3317.0,3316.5,3.07546703]
[1722280468465,2.3414,3317.0,3316.5,3.07543703]
[1722280468668,2.3414,3317.0,3316.6,3.01512]
[1722280473402,2.3414,3317.0,3316.5,0.06029702]
[1722280473749,2.3414,3317.0,3316.5,3.07550702]
[1722280474555,2.3414,3317.0,3316.5,3.01521]
[1722280474920,3.01499,3316.8,3316.2,3.01544]
[1722280475121,2.2899,3316.7,3316.2,3.01544]
[1722280479303,5.30494,3316.7,3316.0,4.13061]
[1722280479724,5.30494,3316.7,3316.1,3.01553]
[1722280480120,2.2899,3316.7,3316.2,3.01549]
[1722280482667,2.2899,3316.7,3316.2,3.01543]
[1722280482864,2.2899,3316.7,3316.3,3.0154]
[1722280485694,2.2899,3316.7,3316.5,3.01516]
[1722280485986,2.2899,3316.7,3316.5,4.13016]
[1722280486195,2.2639,3317.0,3316.6,3.01513]
[1722280486340,2.2639,3317.0,3316.7,3.01501]
[1722280488256,2.2639,3317.0,3316.9,1.115]
[1722280488561,2.4351,3317.3,3317.1,3.01467]
[1722280488758,2.4351,3317.3,3317.2,3.01459]
[1722280490978,2.3816,3317.8,3317.5,3.01431]
[1722280491163,2.3816,3317.8,3317.5,4.12931]
[1722280491371,2.3816,3317.8,3317.1,1.115]
[1722280491586,5.39565,3317.8,3317.1,4.12967]
[1722280491884,2.3816,3317.8,3317.1,4.12967]
[1722280492101,3.01432,3317.5,3316.8,0.63334392]
[1722280492243,2.2645,3317.3,3316.8,0.63334392]
[1722280492461,5.27901,3317.3,3316.8,0.63334392]
[1722280492659,2.4236,3317.2,3316.8,0.63334392]
[1722280492902,5.43819,3317.2,3316.8,0.63334392]
[1722280493074,6.093509,3317.2,3316.8,0.63334392]
[1722280493483,5.35086,3316.9,3316.8,0.63334392]
[1722280494506,2.336,3316.6,3315.9,1.115]
[1722280495407,2.336,3316.6,3316.1,1.115]
[1722280495703,2.336,3316.6,3316.1,4.13058]
[1722280496692,5.35119,3316.6,3316.1,1.115]
[1722280497002,2.336,3316.6,3316.1,4.13058]
[1722280497805,2.336,3316.6,3316.1,1.115]
[1722280499312,2.336,3316.6,3316.0,3.01564]
[1722280500106,2.336,3316.6,3315.6,3.01597]
[1722280500107,3.01537,3316.4,3315.6,3.01597]
[1722280500404,8.485,3316.9,3315.4,3.01622]
[1722280500405,3.01553,3316.2,3315.5,1.115]
[1722280500578,2.3148,3316.3,3315.5,4.13113]
[1722280500769,2.3148,3316.3,3315.7,4.13089]
[1722280501472,2.3148,3316.3,3316.1,1.115]
[1722280501680,2.3148,3316.3,3315.9,4.13075]
[1722280502005,2.3148,3316.3,3316.1,1.115]
[1722280502509,2.3148,3316.3,3315.7,3.01592]
[1722280502709,3.01553,3316.2,3315.5,3.01612]
[1722280503010,2.4582,3315.8,3315.1,3.01649]
[1722280503314,2.4582,3315.7,3315.1,3.01649]
[1722280503607,5.47415,3315.7,3314.9,6.15951912]
[1722280503812,3.01604,3315.6,3315.0,3.01659]
[1722280504213,3.01604,3315.6,3314.9,3.14290912]
[1722280504214,2.4675,3315.4,3314.9,3.14290912]
[1722280504372,5.48378,3315.4,3314.9,3.14290912]
[1722280504580,5.48378,3315.4,3314.7,3.01685]
[1722280504888,2.4675,3315.4,3314.8,3.01677]
[1722280505287,2.4675,3315.4,3314.9,4.13164]
[1722280505513,2.4675,3315.4,3315.3,3.01631]
[1722280505713,5.28339,3316.0,3315.3,3.01631]
[1722280506015,3.3827,3315.9,3315.1,1.115]
[1722280506226,2.2677,3315.8,3315.1,1.115]
[1722280506378,3.01602,3315.7,3315.0,3.01652]
[1722280506578,2.2677,3315.3,3314.7,3.01683]
[1722280507729,5.28402,3315.3,3314.7,3.01683]
[1722280508241,2.2677,3315.3,3314.8,3.01677]
[1722280508825,5.28406,3315.3,3314.7,1.115]
[1722280509026,2.3625,3315.2,3314.7,1.115]
[1722280509344,3.0166,3315.0,3314.5,0.2]
[1722280509502,2.3625,3314.9,3314.5,0.2]
[1722280511275,5.37918,3314.9,3314.5,0.2]
[1722280511449,0.839509,3315.2,3314.5,0.2]
[1722280511450,3.01685,3314.8,3314.5,0.2]
[1722280511631,5.29844,3314.7,3314.5,0.2]
[1722280512159,2.2815,3314.7,3314.5,0.2]
[1722280515397,2.2864,3315.2,3314.5,3.21701]
[1722280515564,2.2864,3315.2,3314.8,3.0167]
[1722280515953,2.2864,3315.2,3314.8,3.07702841]
[1722280516153,2.2864,3315.2,3314.9,3.01667]
[1722280516480,2.2864,3315.2,3315.0,3.01659]
[1722280516786,2.2864,3315.2,3314.8,6.0334]
[1722280516990,2.2864,3315.2,3314.9,3.01667]
[1722280517285,2.2864,3315.2,3315.0,3.01658]
[1722280517459,2.3997,3315.6,3315.1,3.01648]
[1722280517663,2.3997,3315.6,3315.2,0.06032043]
[1722280518071,2.3997,3315.6,3315.2,3.07671043]
[1722280518656,7.37,3315.9,3315.4,3.0162]
[1722280519055,7.37,3315.9,3315.2,3.01635]
[1722280519256,3.01601,3315.7,3315.0,3.01653]
[1722280519814,3.01611,3315.6,3314.7,3.01683]
[1722280519959,3.01611,3315.6,3314.9,3.01661]
[1722280520154,3.01611,3315.6,3314.7,3.0168]
[1722280520155,3.01613,3315.5,3314.7,3.0168]
[1722280520358,3.01622,3315.4,3314.6,3.01693]
[1722280520561,5.36105,3315.1,3314.5,0.2]
[1722280520803,5.36105,3315.1,3314.5,3.21703]
[1722280520804,2.3445,3315.1,3314.5,3.21703]
[1722280521017,2.3445,3315.1,3314.5,0.2]
[1722280521157,2.3445,3315.1,3314.7,3.01683]
[1722280521355,2.3445,3315.1,3314.9,3.01662]
[1722280521557,2.3445,3315.1,3314.5,6.23399]
[1722280521804,2.3445,3315.1,3314.6,3.01689]
[1722280522701,2.3445,3315.1,3314.7,3.0168]
[1722280524001,2.3445,3315.1,3314.5,3.21697]
[1722280524002,2.3445,3315.1,3314.6,3.01691]
[1722280524703,2.3445,3315.1,3314.7,3.01685]
[1722280524888,2.3445,3315.1,3314.8,3.07708877]
[1722280525218,7.37,3315.4,3314.9,3.01663]
[1722280525993,7.37,3315.4,3315.2,3.0164]
[1722280526259,2.4277,3315.5,3315.3,3.01629]
[1722280526802,2.4277,3315.5,3315.4,3.01622]
[1722280527309,3.01574,3316.0,3315.2,2.73932141]
[1722280527310,2.3438,3316.0,3315.2,2.73932141]
[1722280527458,2.3438,3316.4,3315.3,0.06031315]
[1722280527657,2.3438,3316.4,3315.7,3.01588]
[1722280527862,2.3438,3316.4,3315.8,0.06030982]
[1722280528827,2.3438,3316.4,3315.8,3.07615982]
[1722280528963,2.3438,3316.4,3315.8,3.01585]
[1722280529861,2.3438,3316.4,3315.9,3.01571]
[1722280530066,2.3438,3316.4,3315.9,3.07605978]
[1722280530365,2.3438,3316.4,3316.2,3.01548]
[1722280530610,2.3306,3316.9,3316.3,3.0154]
[1722280530924,2.3306,3316.9,3316.4,3.01531]
[1722280531076,2.3306,3316.9,3316.6,3.01512]
[1722280531415,2.3306,3316.9,3316.7,3.01504]
[1722280531638,2.3306,3316.9,3316.6,0.06029722]
[1722280531639,9.8661,3317.3,3316.8,3.01488]
[1722280531767,3.534534,3317.3,3316.6,3.07540722]
[1722280532084,3.534534,3317.3,3316.7,3.01504]
[1722280532295,3.534534,3317.3,3316.8,0.06029291]
[1722280532506,6.549034,3317.3,3316.5,3.01521]
[1722280532682,3.534534,3317.3,3316.4,3.01531]
[1722280532882,3.534534,3317.3,3316.7,3.01503]
[1722280533316,3.534534,3317.3,3316.8,3.07516293]
[1722280533518,2.4961,3317.3,3316.9,3.01481]
[1722280533816,9.8053,3317.7,3317.0,0.06028978]
[1722280534048,12.304228,3317.7,3317.1,3.01466]
[1722280534258,3.01424,3317.6,3316.8,3.0149]
[1722280534394,3.04901288,3317.6,3316.6,3.01511]
[1722280534599,3.01441,3317.4,3316.7,3.01503]
[1722280535237,6.06326288,3317.6,3316.2,3.01549]
[1722280535238,3.01474,3317.1,3316.2,3.01549]
[1722280535394,2.402,3317.0,3316.2,3.01549]
[1722280536032,2.402,3317.0,3316.4,3.01531]
[1722280536235,5.41679,3317.0,3316.2,3.01549]
[1722280536436,6.259943,3317.0,3316.2,3.01549]
[1722280536626,3.01486,3316.9,3316.2,3.01549]
[1722280537695,3.01496,3316.8,3316.0,3.01566]
[1722280537890,3.01496,3316.8,3315.8,3.01584]
[1722280537891,10.615153,3317.0,3315.8,3.01579]
[1722280538096,3.01501,3316.8,3315.8,3.01579]
[1722280538346,3.618087,3316.7,3315.9,3.01575]
[1722280538522,3.618087,3316.7,3315.8,3.01579]
[1722280538726,3.01516,3316.6,3315.8,3.01579]
[1722280539597,3.01516,3316.6,3315.9,3.01575]
[1722280539800,3.01523,3316.5,3315.8,3.01584]
[1722280540095,3.01542,3316.3,3315.6,8.69498]
[1722280540289,2.4211,3316.3,3315.7,3.01594]
[1722280540521,5.43652,3316.3,3315.5,3.01607]
[1722280541019,5.43652,3316.3,3315.6,3.01604]
[1722280541220,3.01552,3316.2,3315.4,3.01621]
[1722280541423,2.4211,3316.3,3315.5,3.0]
[1722280541625,2.4211,3316.3,3315.6,0.06030832]
[1722280541827,2.4211,3316.3,3315.6,2.73930832]
[1722280542199,2.4211,3316.3,3315.7,3.01593]
[1722280542419,2.4211,3316.3,3315.8,3.01584]
[1722280542731,2.4211,3316.3,3315.9,3.07605594]
[1722280543833,7.37,3316.5,3316.1,3.01552]
[1722280543996,7.37,3316.5,3315.9,3.07605594]
[1722280543997,7.37,3316.5,3315.9,3.01574]
[1722280545331,7.37,3316.5,3315.5,3.01607]
[1722280545332,11.669865,3316.5,3315.5,3.01607]
[1722280545534,3.01541,3316.3,3315.6,3.01598]
[1722280545839,3.01541,3316.3,3315.7,3.01592]
[1722280546212,7.37,3316.5,3315.8,0.0603079]
[1722280546712,7.37,3316.5,3316.1,3.01559]
[1722280546914,5.47604,3316.7,3316.2,0.06030327]
[1722280548661,2.461,3316.7,3316.3,3.01539]
[1722280548809,2.461,3316.7,3316.2,0.06030327]
[1722280550912,2.461,3316.7,3316.4,3.0153]
[1722280551112,2.392,3316.9,3316.4,3.01526]
[1722280551311,2.392,3316.9,3316.2,3.01543]
[1722280551754,5.40686,3316.9,3316.2,3.01543]
[1722280554170,5.40686,3316.9,3316.3,3.0154]
[1722280554673,5.40686,3316.9,3316.0,5.69465]
[1722280554846,5.40686,3316.9,3316.2,3.01548]
[1722280555045,7.12585652,3316.9,3316.2,3.01548]
[1722280556249,3.01496,3316.8,3316.2,3.01548]
[1722280556591,3.01516,3316.6,3315.8,3.01582]
[1722280556886,5.39227,3316.5,3315.8,3.01584]
[1722280557196,3.01537,3316.4,3315.6,3.01597]
[1722280557686,5.28292,3316.2,3315.6,3.01603]
[1722280558765,2.2674,3316.2,3315.6,3.01603]
[1722280559085,2.2674,3316.2,3315.5,3.0161]
[1722280559288,5.28292,3316.2,3315.5,3.0161]
[1722280559594,5.28292,3316.2,3315.1,3.01646]
[1722280559595,2.3083,3315.9,3315.1,3.01646]
[1722280559951,2.3083,3315.9,3315.3,3.01629]
[1722280560304,2.3083,3315.9,3315.1,3.01642]
[1722280560456,3.01592,3315.8,3315.1,3.01642]
[1722280560650,2.3083,3315.9,3315.2,3.0164]
[1722280560957,3.577705,3315.9,3315.4,3.0162]
[1722280561180,2.3083,3315.9,3315.2,3.01632]
[1722280561366,2.3083,3315.9,3315.5,3.0161]
[1722280561570,2.3083,3315.9,3315.4,3.0162]
[1722280562290,2.3083,3315.9,3315.5,3.01612]
[1722280562476,2.3083,3315.9,3315.6,3.01603]
[1722280562996,2.3083,3315.9,3315.7,3.01594]
[1722280563201,2.3083,3315.9,3315.5,3.076446]
[1722280563202,2.3083,3315.9,3315.5,3.076386]
[1722280563492,2.3083,3315.9,3315.6,3.01603]
[1722280563789,2.3083,3315.9,3315.6,3.07634423]
[1722280564170,2.3083,3315.9,3315.7,3.01595]
[1722280564373,2.3083,3315.9,3315.8,3.01586]
[1722280564586,2.3083,3315.9,3315.6,3.01597]
[1722280565485,2.3083,3315.9,3315.4,3.01619]
[1722280565797,2.53913,3315.9,3315.4,3.01619]
[1722280565960,2.53913,3315.9,3315.2,3.01637]
[1722280566160,2.4712,3315.8,3315.2,3.01637]
[1722280566597,2.4712,3315.8,3315.0,3.01655]
[1722280566598,2.3038,3315.7,3315.1,3.01649]
[1722280567594,2.3038,3315.7,3315.3,3.01631]
[1722280567800,2.3038,3315.7,3315.2,3.01638]
[1722280567999,2.3038,3315.7,3315.4,3.01616]
[1722280568303,2.3038,3315.7,3315.3,3.01631]
[1722280568496,2.3038,3315.7,3315.4,3.01622]
[1722280569064,2.3038,3315.7,3315.2,3.01635]
[1722280569365,2.2561,3315.5,3314.5,3.21701]
[1722280569559,0.23038,3315.7,3314.5,3.21701]
[1722280569560,2.2561,3315.2,3314.6,3.01688]
[1722280570059,2.2561,3315.2,3314.5,3.21704]
[1722280570060,5.27259,3315.2,3314.5,3.21704]
[1722280570263,3.01659,3315.0,3314.5,0.2]
[1722280570606,2.277,3314.9,3314.5,0.2]
[1722280571258,2.277,3314.9,3314.5,3.21704]
[1722280571563,2.277,3314.9,3314.6,3.01691]
[1722280572196,2.277,3314.9,3314.5,0.2]
[1722280572406,5.52138,3314.9,3314.5,0.2]
[1722280572601,3.01677,3314.8,3314.5,0.2]
[1722280572895,5.52138,3314.9,3314.5,0.2]
[1722280572896,3.01689,3314.7,3314.5,0.2]
[1722280573099,5.49805,3314.6,3314.5,0.2]
[1722280573310,8.515,3314.6,3314.5,0.2]
[1722280573613,9.3665,3314.6,3314.5,0.2]
[1722280574561,12.38345,3314.6,3314.5,0.2]
[1722280574797,12.93345,3314.6,3314.5,0.2]
[1722280575379,9.9165,3314.6,3314.5,0.2]
[1722280575583,9.3665,3314.6,3314.5,0.2]
[1722280576906,12.38345,3314.6,3314.5,0.2]
[1722280577178,15.93345,3314.6,3314.5,0.2]
[1722280578095,12.9165,3314.6,3314.5,0.2]
[1722280578295,12.3665,3314.6,3314.5,0.2]
[1722280580233,6.34955,3314.6,3314.5,0.2]
[1722280582218,9.3665,3314.6,3314.5,0.2]
[1722280593881,6.34955,3314.6,3314.5,0.2]
[1722280594380,9.3665,3314.6,3314.5,0.2]
[1722280594591,12.9165,3314.6,3314.5,0.2]
[1722280595034,15.93345,3314.6,3314.5,0.2]
[1722280595238,12.9165,3314.6,3314.5,0.2]
[1722280595471,15.93345,3314.6,3314.5,0.2]
[1722280597273,15.93345,3314.6,3312.6,5.69776]
[1722280597274,2.2611,3313.9,3311.6,0.94275252]
[1722280597475,2.2611,3313.9,3311.2,2.15283283]
[1722280597476,3.0186,3312.8,3312.0,3.01926]
[1722280597773,3.01852,3312.9,3312.0,3.01923]
[1722280597974,9.7194,3313.0,3312.0,3.01929]
[1722280597975,3.01859,3312.8,3312.0,3.01929]
[1722280598277,3.01901,3312.4,3311.2,2.679]
[1722280598463,3.01901,3312.4,3311.7,3.01955]
[1722280600178,10.38877,3312.6,3311.2,2.679]
[1722280600380,7.37,3312.6,3312.0,3.01925]
[1722280600678,3.01861,3312.8,3312.2,3.01912]
[1722280600848,7.37,3312.9,3312.3,3.01901]
[1722280601760,7.37,3312.9,3312.1,3.01923]
[1722280601761,7.37,3312.9,3312.4,3.01894]
[1722280602165,7.37,3312.9,3312.2,3.01907]
[1722280602346,7.37,3312.9,3312.3,3.01898]
[1722280602553,7.37,3312.9,3312.7,3.01868]
[1722280602878,2.4203,3313.4,3312.7,3.01868]
[1722280602879,5.43836,3313.4,3312.7,3.01868]
[1722280603080,5.43836,3313.4,3312.6,0.06036928]
[1722280603081,3.01815,3313.3,3312.6,0.06036928]
[1722280603548,2.4203,3313.4,3312.6,0.06036928]
[1722280603882,2.4203,3313.4,3312.7,3.01868]
[1722280604040,2.4203,3313.4,3312.8,3.01857]
[1722280604240,2.4203,3313.4,3312.6,3.07906928]
[1722280604241,5.43835,3313.4,3312.6,3.07906928]
[1722280604450,5.43835,3313.4,3312.4,3.01889]
[1722280604451,3.01829,3313.2,3312.4,3.01889]
[1722280604874,3.01814,3313.3,3312.4,3.01889]
[1722280605045,2.92726417,3313.4,3312.1,3.0192]
[1722280605046,3.01851,3312.9,3312.1,3.0192]
[1722280605246,0.301851,3312.8,3312.1,3.0192]
[1722280605463,3.01862,3312.8,3312.1,3.0192]
[1722280605790,3.01844,3313.0,3312.2,3.01913]
[1722280605950,3.0186,3312.8,3312.1,3.01922]
[1722280606583,3.01844,3313.0,3312.2,3.0191]
[1722280607172,3.01844,3313.0,3312.3,3.01903]
[1722280607399,3.01844,3313.0,3312.4,3.01894]
[1722280607801,3.01844,3313.0,3312.2,3.0795069]
[1722280608158,7.37,3313.1,3312.4,3.01888]
[1722280608359,7.37,3313.1,3312.3,3.07941545]
[1722280608702,7.37,3313.1,3312.5,3.01884]
[1722280609257,10.38834,3313.1,3312.3,3.01898]
[1722280609563,10.38834,3313.1,3312.3,3.07935328]
[1722280609777,10.38834,3313.1,3312.4,3.01895]
[1722280609978,7.37,3313.1,3312.4,3.01895]
[1722280610361,10.38833,3313.1,3312.4,3.01895]
[1722280610774,7.37,3313.1,3312.6,3.0187]
[1722280611071,7.37,3313.1,3312.5,0.0603733]
[1722280611390,10.38835,3313.1,3312.5,0.0603733]
[1722280611593,10.38835,3313.1,3312.4,3.01895]
[1722280612099,7.37,3313.1,3312.5,0.06036864]
[1722280612258,7.37,3313.1,3312.6,3.01876]
[1722280612459,3.01819,3313.3,3312.6,3.01876]
[1722280613624,3.01823,3313.2,3312.5,0.06036864]
[1722280613923,3.01819,3313.3,3312.5,0.06036864]
[1722280614233,3.01823,3313.2,3312.6,3.01874]
[1722280614386,3.01823,3313.2,3312.5,0.06036864]
[1722280614587,3.01823,3313.2,3312.5,3.07922864]
[1722280614888,3.01823,3313.2,3312.6,0.06036865]
[1722280615221,3.01855,3312.9,3312.1,3.01917]
[1722280615534,3.01855,3312.9,3311.9,3.01938]
[1722280615828,3.01861,3312.8,3312.0,3.01925]
[1722280616127,3.01861,3312.8,3311.9,3.01938]
[1722280616297,3.01885,3312.6,3311.8,3.01944]
[1722280616494,3.01885,3312.6,3311.5,6.01974]
[1722280616495,3.01885,3312.6,3311.6,3.01961]
[1722280616700,3.01901,3312.4,3311.6,3.01961]
[1722280617211,3.01906,3312.3,3311.6,3.01961]
[1722280617411,3.01914,3312.2,3311.5,3.01975]
[1722280617820,3.01901,3312.4,3311.3,5.51602]
[1722280617821,3.01901,3312.4,3311.6,3.01968]
[1722280618408,3.01905,3312.3,3311.6,3.01968]
[1722280618723,3.01905,3312.3,3311.4,3.01979]
[1722280618724,3.01915,3312.2,3311.4,3.01979]
[1722280618921,1.340806,3312.3,3311.4,3.01979]
[1722280618922,3.01931,3312.1,3311.4,3.01979]
[1722280620614,7.378966,3312.3,3311.5,3.01977]
[1722280620815,4.359856,3312.3,3311.5,3.01977]
[1722280621616,4.359856,3312.3,3311.4,3.01979]
[1722280621847,3.01923,3312.1,3311.4,3.01979]
[1722280623154,1.340806,3312.3,3311.5,3.01976]
[1722280623356,10.3889,3312.5,3311.6,3.01966]
[1722280623555,3.01911,3312.3,3311.6,3.01966]
[1722280624435,3.01914,3312.2,3311.6,3.01966]
[1722280624629,3.01911,3312.3,3311.6,3.01966]
[1722280625253,3.01897,3312.4,3311.7,3.01959]
[1722280625549,4.359755,3312.4,3311.7,3.01959]
[1722280625714,4.359755,3312.4,3311.6,3.01966]
[1722280625918,4.359755,3312.4,3311.7,3.01958]
[1722280626562,4.359755,3312.4,3311.8,3.0195]
[1722280626720,7.37,3312.5,3312.0,3.01923]
[1722280626926,7.37,3312.5,3311.8,3.01944]
[1722280627232,7.37,3312.5,3312.1,3.01922]
[1722280628036,7.37,3312.5,3311.9,3.0194]
[1722280628239,11.978112,3312.5,3311.8,3.0195]
[1722280628566,3.01906,3312.3,3311.7,3.01958]
[1722280628861,3.01915,3312.2,3311.5,3.0197]
[1722280629062,3.01924,3312.1,3311.5,3.0197]
[1722280629368,3.85199,3312.1,3311.5,3.0197]
[1722280629530,0.83275,3312.1,3311.5,3.0197]
[1722280629873,2.2892,3312.2,3311.5,3.0197]
[1722280630852,2.2892,3312.2,3311.7,3.01959]
[1722280632641,11.978092,3312.5,3311.7,3.07997697]
[1722280633053,3.01896,3312.4,3311.8,3.0195]
[1722280633585,8.959192,3312.5,3311.8,3.0195]
[1722280633881,1.1435792,3312.4,3311.8,3.0195]
[1722280634233,4.1625692,3312.4,3311.8,3.0195]
[1722280634436,3.01912,3312.3,3311.6,3.01968]
[1722280634834,1.1435792,3312.4,3311.7,3.01957]
[1722280635040,1.1435792,3312.4,3311.5,3.0197]
[1722280635041,1.15324992,3312.3,3311.5,3.0197]
[1722280635253,3.01914,3312.2,3311.5,3.0197]
[1722280635458,3.0195,3311.8,3311.2,3.02002]
[1722280636260,3.0195,3311.8,3311.0,6.04038]
[1722280636456,3.0195,3311.8,3311.1,6.08051673]
[1722280636660,6.03871,3312.0,3311.2,3.02002]
[1722280636893,6.03871,3312.0,3311.3,3.01994]
[1722280636894,3.01942,3311.9,3311.3,3.01994]
[1722280637065,2.3233,3312.1,3311.4,3.01986]
[1722280637267,2.3233,3312.1,3311.5,3.01972]
[1722280637604,2.3233,3312.1,3311.6,3.01966]